bitfinex/quotes_ETHUSD_20220731
["timestamp","ask_amount","ask_price","bid_price","bid_amount"]
[1659261785680,5.5786,1701.8,1701.6,0.01753514]
[1659261786538,5.5786,1701.8,1701.6,0.03401335]
[1659261786739,8.47664672,1701.8,1701.6,0.03401335]
[1659261786975,5.5786,1701.8,1701.6,0.03401335]
[1659261787764,5.5786,1701.8,1701.7,0.01647821]
[1659261788223,12.2153,1701.9,1701.7,0.01647821]
[1659261788423,8.9946,1701.9,1701.7,0.01647821]
[1659261789684,8.9946,1701.9,1701.7,0.03295642]
[1659261790125,2.89804672,1701.8,1701.7,0.03295642]
[1659261790332,2.89804672,1701.8,1701.7,5.642e-05]
[1659261790333,9.01414672,1701.8,1701.7,5.642e-05]
[1659261790570,9.75534672,1701.8,1701.7,5.642e-05]
[1659261790764,6.4161,1701.8,1701.7,5.642e-05]
[1659261790953,6.0697,1701.8,1701.7,0.0171648]
[1659261792178,9.2946,1701.9,1701.7,0.0171648]
[1659261794265,9.2946,1701.9,1701.7,0.03364418]
[1659261795373,9.2946,1701.9,1701.7,0.05012356]
[1659261795787,8.9946,1701.9,1701.7,0.05012356]
[1659261797712,8.9946,1701.9,1701.5,0.17050829]
[1659261797713,8.9946,1701.9,1701.6,0.00012356]
[1659261798732,8.9946,1701.9,1701.8,0.02811398]
[1659261799591,8.9946,1701.9,1701.8,0.04347213]
[1659261800389,1.8,1702.0,1701.8,0.17750471]
[1659261802278,1.8,1702.0,1701.9,2.89804672]
[1659261802455,1.8,1702.0,1701.9,7.55508137]
[1659261802672,1.8,1702.0,1701.9,4.05508137]
[1659261803429,1.8,1702.0,1701.9,3.33914672]
[1659261804657,1.8,1702.0,1701.9,0.4411]
[1659261804888,1.8,1702.0,1701.8,0.17750471]
[1659261805642,1.8,1702.0,1701.8,0.04347213]
[1659261810469,0.0645266,1701.9,1701.7,0.33403258]
[1659261810656,0.0645266,1701.9,1701.7,3.2320793]
[1659261813055,0.0645266,1701.9,1701.7,2.89804672]
[1659261813255,0.0645266,1701.9,1701.4,0.4413]
[1659261813509,0.0645266,1701.9,1701.3,3.7572]
[1659261813705,0.0645266,1701.9,1701.3,6.21394672]
[1659261814461,0.0645266,1701.9,1701.3,6.3479793]
[1659261815309,0.12715536,1701.9,1701.3,6.3479793]
[1659261815657,0.12715536,1701.9,1701.4,3.5]
[1659261816091,0.12715536,1701.9,1701.3,6.3479793]
[1659261816294,0.12715536,1701.9,1701.4,3.5]
[1659261816502,0.12715536,1701.9,1701.3,6.3479793]
[1659261816719,0.12715536,1701.9,1701.4,3.5]
[1659261816869,0.37715536,1701.9,1701.4,3.5]
[1659261818670,0.37715536,1701.9,1701.3,6.34999476]
[1659261821279,0.37715536,1701.9,1701.4,6.39804672]
[1659261821483,0.12715536,1701.9,1701.5,6.3372521]
[1659261821702,0.12715536,1701.9,1701.6,2.89804672]
[1659261823111,0.12715536,1701.9,1701.6,6.39804672]
[1659261824043,0.12715536,1701.9,1701.6,2.89804672]
[1659261824614,0.12715536,1701.9,1701.5,6.5320793]
[1659261824815,0.12715536,1701.9,1701.5,0.13403258]
[1659261825029,0.37715536,1701.9,1701.5,3.13403258]
[1659261825466,0.37715536,1701.9,1701.5,0.13403258]
[1659261826056,0.37715536,1701.9,1701.5,3.63403258]
[1659261827117,0.37715536,1701.9,1701.5,0.13403258]
[1659261830470,3.71630208,1701.9,1701.2,3.72341884]
[1659261830710,3.71630208,1701.9,1701.2,3.67341884]
[1659261831282,12.17510208,1701.9,1701.2,3.67341884]
[1659261831716,12.17510208,1701.9,1701.2,4.27341884]
[1659261831875,12.17510208,1701.9,1701.3,3.0]
[1659261832069,12.17510208,1701.9,1701.2,0.17341884]
[1659261832070,12.77705536,1701.9,1701.2,0.17341884]
[1659261832269,9.27705536,1701.9,1701.2,3.63403258]
[1659261832520,9.27705536,1701.9,1701.3,2.89804672]
[1659261832672,8.83595536,1701.9,1701.3,2.89804672]
[1659261833116,8.83595536,1701.9,1701.2,6.2857793]
[1659261833273,8.83595536,1701.9,1701.2,9.7857793]
[1659261833673,8.83595536,1701.9,1701.2,6.2857793]
[1659261833921,8.83595536,1701.9,1701.2,9.7857793]
[1659261835173,8.83595536,1701.9,1701.3,2.89804672]
[1659261837050,8.83595536,1701.9,1701.2,0.13403258]
[1659261837051,15.23400208,1701.9,1701.2,0.13403258]
[1659261837240,3.3137,1701.8,1701.2,3.13403258]
[1659261837446,3.3137,1701.8,1701.2,3.31322139]
[1659261837792,6.8137,1701.8,1701.2,3.31322139]
[1659261838338,3.3137,1701.8,1701.2,3.31322139]
[1659261839354,3.5637,1701.8,1701.2,3.31322139]
[1659261839555,7.0637,1701.8,1701.2,3.31322139]
[1659261839970,7.0637,1701.8,1701.0,0.35]
[1659261839971,6.39804672,1701.7,1701.0,0.35]
[1659261840187,0.00232099,1701.2,1701.0,0.3]
[1659261845202,1.8,1701.3,1701.2,2e-05]
[1659261849692,1.99335504,1701.3,1701.2,2e-05]
[1659261854017,1.92890336,1701.3,1701.2,2e-05]
[1659261858341,1.99335504,1701.3,1701.2,2e-05]
[1659261862630,1.92890336,1701.3,1701.2,2e-05]
[1659261864382,1.78596357,1701.3,1701.2,2e-05]
[1659261864797,2.04239453,1701.3,1701.2,2e-05]
[1659261867024,1.97828679,1701.3,1701.2,2e-05]
[1659261867648,1.97828679,1701.3,1701.2,2.89806672]
[1659261867850,0.19232322,1701.3,1701.2,2.89806672]
[1659261871446,0.25637487,1701.3,1701.2,2.89806672]
[1659261872275,0.25637487,1701.3,1701.2,2.84806672]
[1659261874703,0.25637487,1701.3,1701.2,6.8820993]
[1659261874998,0.25637487,1701.3,1701.2,9.8820993]
[1659261876207,0.25637487,1701.3,1701.2,9.4820993]
[1659261877135,1.95637487,1701.3,1701.2,9.4820993]
[1659261879908,1.95637487,1701.3,1701.2,9.65831945]
[1659261884753,1.95637487,1701.3,1701.0,0.3]
[1659261885748,5.67787487,1701.3,1701.0,0.3]
[1659261886747,5.23657487,1701.3,1701.0,0.3]
[1659261887588,5.23657487,1701.3,1701.0,3.19804672]
[1659261899101,5.2344769,1701.3,1701.0,3.19804672]
[1659261899860,5.17042525,1701.3,1701.0,3.19804672]
[1659261900688,0.06106692,1701.1,1701.0,3.19804672]
[1659261909129,0.06106692,1701.1,1701.0,4.16608701]
[1659261915020,0.06106692,1701.1,1701.0,18.20811959]
[1659261915357,0.06106692,1701.1,1701.0,21.50811959]
[1659261916441,0.06106692,1701.1,1701.0,15.30011959]
[1659261918338,0.06106692,1701.1,1701.0,14.90011959]
[1659261919557,0.06106692,1701.1,1701.0,11.40011959]
[1659261921749,0.06106692,1701.1,1701.0,11.26608701]
[1659261922204,0.06106692,1701.1,1701.0,7.16608701]
[1659261922864,0.06106692,1701.1,1701.0,4.16608701]
[1659261925687,0.06106692,1701.1,1701.0,7.66608701]
[1659261927099,0.06106692,1701.1,1701.0,4.16608701]
[1659261927487,0.06106692,1701.1,1701.0,7.66608701]
[1659261928305,0.06106692,1701.1,1701.0,4.16608701]
[1659261928618,0.06106692,1701.1,1701.0,7.66608701]
[1659261929281,0.06106692,1701.1,1701.0,4.16608701]
[1659261929723,0.06106692,1701.1,1701.0,7.66608701]
[1659261930093,0.06106692,1701.1,1701.0,11.16608701]
[1659261930282,0.06106692,1701.1,1701.0,14.16608701]
[1659261931992,6.692e-05,1701.1,1701.0,21.37408701]
[1659261932194,6.692e-05,1701.1,1701.0,21.81548701]
[1659261932399,0.06104369,1701.1,1701.0,21.81548701]
[1659261932699,0.06104369,1701.1,1701.0,22.73530584]
[1659261935948,1.76410774,1701.3,1701.2,12.708]
[1659261936132,1.76410774,1701.3,1701.2,26.04734672]
[1659261936337,1.76410774,1701.3,1701.2,25.60604672]
[1659261936582,1.76410774,1701.3,1701.2,26.57408701]
[1659261937081,1.76410774,1701.3,1701.2,21.07408701]
[1659261941702,1.76410774,1701.3,1701.2,21.25255592]
[1659261942291,1.76410774,1701.3,1701.2,20.85255592]
[1659261942684,1.76410774,1701.3,1701.2,21.25255592]
[1659261944686,1.76410774,1701.3,1701.2,20.85255592]
[1659261945539,0.05760576,1701.4,1701.3,0.33403258]
[1659261945807,0.05760576,1701.4,1701.3,16.42952671]
[1659261945923,0.05760576,1701.4,1701.3,12.92952671]
[1659261946308,0.05760576,1701.4,1701.3,13.897567]
[1659261946546,0.05760576,1701.4,1701.3,13.697567]
[1659261946758,0.05760576,1701.4,1701.3,13.497567]
[1659261946759,0.11460576,1701.4,1701.3,13.497567]
[1659261947994,0.05760576,1701.4,1701.3,13.897567]
[1659261948679,0.05760576,1701.4,1701.3,13.497567]
[1659261949117,0.17170546,1701.4,1701.3,13.497567]
[1659261949417,0.17170546,1701.4,1701.3,13.697567]
[1659261950309,0.17170546,1701.4,1701.3,13.40811959]
[1659261952640,0.17170546,1701.4,1701.3,13.41013505]
[1659261953837,0.17170546,1701.4,1701.3,13.61013505]
[1659261957323,0.17170546,1701.4,1701.3,13.21013505]
[1659261960252,2.55,1701.8,1701.4,0.05629454]
[1659261960436,2.5,1701.8,1701.7,7.0]
[1659261960603,2.5,1701.8,1701.7,16.8024432]
[1659261960803,2.5,1701.8,1701.7,17.77048349]
[1659261961252,3.2081,1701.9,1701.7,17.77048349]
[1659261961437,0.25,1702.1,1701.8,5.89804672]
[1659261961607,0.25,1702.1,1701.9,2.89804672]
[1659261962655,0.441,1702.3,1701.9,2.89804672]
[1659261963157,0.441,1702.3,1702.0,3.5]
[1659261963560,12.3724,1702.4,1702.0,3.5]
[1659261964046,2.5,1702.1,1702.0,3.5]
[1659261964219,2.60364142,1702.1,1702.0,3.5]
[1659261965066,2.60364142,1702.1,1701.9,2.89804672]
[1659261965415,0.10364142,1702.1,1701.9,2.89804672]
[1659261966141,0.10364142,1702.1,1702.0,0.96804029]
[1659261967080,2.60364142,1702.1,1702.0,4.46804029]
[1659261968278,2.60364142,1702.1,1702.0,0.96804029]
[1659261968434,2.60364142,1702.1,1702.0,4.46804029]
[1659261968636,2.60364142,1702.1,1702.0,0.96804029]
[1659261969260,2.60364142,1702.1,1702.0,4.46804029]
[1659261969883,2.60364142,1702.1,1702.0,0.96804029]
[1659261970053,2.60364142,1702.1,1702.0,4.46804029]
[1659261970951,2.60364142,1702.1,1702.0,0.96804029]
[1659261971889,2.60364142,1702.1,1702.0,4.46804029]
[1659261972684,2.60364142,1702.1,1702.0,0.96804029]
[1659261974910,3.04474142,1702.1,1702.0,0.96804029]
[1659261975214,3.04474142,1702.1,1702.0,0.79994029]
[1659261975878,2.60364142,1702.1,1702.0,0.79994029]
[1659261977420,3.34474142,1702.1,1702.0,0.79994029]
[1659261977579,3.64474142,1702.1,1702.0,0.79994029]
[1659261981914,3.20364142,1702.1,1702.0,0.79994029]
[1659261982312,3.2542328,1702.1,1702.0,0.79994029]
[1659261984339,6.5,1702.0,1701.6,0.05]
[1659261984522,16.76400134,1701.9,1701.3,0.05]
[1659261984721,5.89804672,1701.8,1701.1,11.55]
[1659261985046,3.63924672,1701.7,1701.0,0.35]
[1659261985233,5.72304173,1701.6,1701.0,0.3]
[1659261985441,14.76824672,1701.5,1701.0,0.3]
[1659261985753,7.5,1701.2,1700.8,0.05]
[1659261985934,7.5,1701.2,1700.5,0.05]
[1659261985935,10.35012045,1701.2,1700.5,0.05]
[1659261986102,10.65012045,1701.2,1700.4,3.55]
[1659261986299,10.65012045,1701.2,1700.4,3.5]
[1659261986540,3.15012045,1701.2,1700.3,3.72348441]
[1659261986757,3.20012045,1701.2,1700.4,3.5]
[1659261986957,10.65012045,1701.2,1700.4,3.5]
[1659261987168,3.15012045,1701.2,1700.5,2.89804672]
[1659261987374,10.65012045,1701.2,1700.5,2.89804672]
[1659261987932,0.25,1701.1,1700.5,2.89804672]
[1659261988132,0.55,1701.1,1700.5,2.89804672]
[1659261988633,0.55,1701.1,1700.5,6.5320793]
[1659261988817,0.55,1701.1,1700.5,3.0320793]
[1659261989845,0.55,1701.1,1700.5,6.5320793]
[1659261990232,0.55,1701.1,1700.5,3.0320793]
[1659261991085,0.05396414,1701.0,1700.5,3.0320793]
[1659261991265,0.25,1700.9,1700.5,3.0320793]
[1659261991851,0.25,1700.9,1700.5,6.5320793]
[1659261992582,0.25,1700.9,1700.5,3.0320793]
[1659261992781,0.25,1700.9,1700.3,0.4415]
[1659261993036,0.25,1700.9,1700.3,5.89804672]
[1659261993542,0.25,1700.9,1700.4,3.5]
[1659261993982,0.25,1700.9,1700.3,6.0320793]
[1659261994759,0.25,1700.9,1700.4,3.5]
[1659261994940,0.25,1700.9,1700.3,3.13403258]
[1659261995546,0.30222336,1700.9,1700.3,3.13403258]
[1659261995747,0.30222336,1700.9,1700.3,0.13403258]
[1659261995965,0.60222336,1700.9,1700.3,0.13403258]
[1659261996797,0.65444672,1700.9,1700.3,0.13403258]
[1659261999762,0.60222336,1700.9,1700.3,0.13403258]
[1659262000462,4.10222336,1700.9,1700.3,0.13403258]
[1659262000916,3.56752336,1700.9,1700.3,0.13403258]
[1659262001477,7.06752336,1700.9,1700.3,0.13403258]
[1659262001676,3.56752336,1700.9,1700.3,0.13403258]
[1659262001880,6.82312336,1700.9,1700.3,0.13403258]
[1659262003198,6.52312336,1700.9,1700.5,3.5]
[1659262003374,6.70027008,1700.9,1700.2,11.55]
[1659262003582,6.70027008,1700.9,1700.2,11.5]
[1659262003583,3.9414,1700.8,1700.2,11.5]
[1659262003809,0.4414,1700.8,1700.2,11.5]
[1659262004325,6.83944672,1700.8,1700.2,11.5]
[1659262004538,0.3,1700.6,1700.2,11.5]
[1659262004693,7.13944672,1700.8,1699.9,15.05]
[1659262004694,7.43944672,1700.8,1699.9,15.05]
[1659262004888,2.89804672,1700.6,1699.9,15.05]
[1659262005107,2.89804672,1700.6,1699.9,15.0]
[1659262005288,3.5,1700.5,1699.9,11.5]
[1659262005489,0.3,1700.5,1699.9,11.5]
[1659262005689,12.26504672,1700.6,1699.9,11.5]
[1659262006140,12.26504672,1700.6,1699.8,11.55]
[1659262006291,15.07754672,1700.6,1699.8,14.39804672]
[1659262006724,14.63604672,1700.6,1699.8,14.39804672]
[1659262006926,3.8,1700.5,1699.9,0.13403258]
[1659262007419,0.25,1700.4,1699.9,0.13403258]
[1659262008087,0.25,1700.4,1699.8,11.5]
[1659262008088,4.4915,1700.4,1699.8,11.5]
[1659262008237,0.9915,1700.4,1699.8,11.5]
[1659262009298,4.4915,1700.4,1699.8,11.5]
[1659262009693,0.9915,1700.4,1699.8,11.5]
[1659262010137,4.4915,1700.4,1699.8,11.5]
[1659262010336,0.9915,1700.4,1699.8,11.5]
[1659262010520,0.9915,1700.4,1699.8,11.63403258]
[1659262011108,4.4915,1700.4,1699.8,11.63403258]
[1659262011954,0.9915,1700.4,1699.8,11.63403258]
[1659262012149,4.05,1700.4,1699.8,11.63403258]
[1659262012354,3.5,1700.3,1699.8,11.63403258]
[1659262012564,0.3,1700.3,1699.8,11.63403258]
[1659262012940,6.94804672,1700.4,1699.8,11.63403258]
[1659262012941,7.24804672,1700.4,1699.8,11.63403258]
[1659262013566,3.74804672,1700.4,1699.8,11.63403258]
[1659262013785,0.10444672,1700.3,1699.8,11.63403258]
[1659262014496,3.60444672,1700.3,1699.8,11.63403258]
[1659262014699,0.10444672,1700.3,1699.8,11.63403258]
[1659262015997,3.60444672,1700.3,1699.8,11.63403258]
[1659262016229,0.10444672,1700.3,1699.8,11.63403258]
[1659262016797,3.60444672,1700.3,1699.8,11.63403258]
[1659262017145,0.10444672,1700.3,1699.8,11.63403258]
[1659262018112,3.60444672,1700.3,1699.8,11.63403258]
[1659262018318,0.10444672,1700.3,1699.8,11.63403258]
[1659262018526,6.94359344,1700.3,1699.8,11.63403258]
[1659262018712,3.44359344,1700.3,1699.8,11.63403258]
[1659262019112,6.94359344,1700.3,1699.8,11.63403258]
[1659262019357,0.25,1700.2,1699.8,11.63403258]
[1659262022570,0.25,1700.2,1699.8,11.5]
[1659262023132,4.05,1700.2,1699.8,11.5]
[1659262023537,4.35,1700.2,1699.8,11.5]
[1659262023737,7.24804672,1700.2,1699.8,11.5]
[1659262023936,3.74804672,1700.2,1699.8,11.5]
[1659262024668,7.30027008,1700.2,1699.8,11.5]
[1659262024838,3.80027008,1700.2,1699.8,11.5]
[1659262025031,7.30027008,1700.2,1699.8,11.5]
[1659262025444,3.80027008,1700.2,1699.8,11.5]
[1659262026046,7.30027008,1700.2,1699.8,11.5]
[1659262026264,3.80027008,1700.2,1699.8,11.5]
[1659262026474,6.83924672,1700.1,1699.8,11.5]
[1659262026679,6.39804672,1700.0,1699.8,11.49716991]
[1659262026895,2.89804672,1699.9,1699.5,11.5]
[1659262027900,3.19804672,1699.9,1699.5,11.5]
[1659262028202,3.49804672,1699.9,1699.5,11.5]
[1659262029588,2.89804672,1699.8,1699.5,11.5]
[1659262029802,2.7151584,1699.6,1699.5,11.5]
[1659262030014,0.73230891,1699.5,1699.1,0.05]
[1659262030163,2.89804672,1699.4,1698.8,11.55]
[1659262030360,3.19804672,1699.4,1698.8,11.5]
[1659262030560,3.19804672,1699.4,1698.7,7.0]
[1659262030561,0.3,1699.4,1698.7,7.0]
[1659262030761,0.3,1699.3,1698.8,0.44870214]
[1659262030992,0.3,1699.3,1698.8,3.26742991]
[1659262031262,0.55,1699.4,1698.7,7.4415]
[1659262031469,3.44804672,1699.4,1698.7,7.4415]
[1659262031885,2.89804672,1699.3,1698.7,0.4415]
[1659262032118,0.21068177,1699.2,1698.7,0.4415]
[1659262032309,0.21068177,1699.2,1698.6,6.53673258]
[1659262033299,0.21068177,1699.2,1698.6,6.09523258]
[1659262033482,3.10872849,1699.2,1698.6,3.36873258]
[1659262033691,6.7445671,1699.1,1698.5,0.4416]
[1659262033881,6.7445671,1699.1,1698.4,11.9416]
[1659262033882,6.69804672,1699.0,1698.4,11.9416]
[1659262034081,2.78340937,1698.8,1698.4,11.5]
[1659262034503,0.04652038,1698.7,1698.4,11.5]
[1659262035293,0.04652038,1698.7,1698.2,0.00298353]
[1659262035294,3.19804672,1698.6,1698.2,0.00298353]
[1659262035496,5.9445671,1698.5,1698.2,0.00298353]
[1659262035694,6.2445671,1698.5,1698.2,0.00298353]
[1659262035924,2.89804672,1698.4,1698.2,0.00298353]
[1659262036127,3.19804672,1698.4,1698.0,0.3]
[1659262036312,2.9445671,1698.3,1698.0,0.3]
[1659262036640,2.89804672,1698.2,1698.0,0.3]
[1659262036943,3.63552038,1698.1,1698.0,0.3]
[1659262037349,0.63552038,1698.1,1698.0,0.3]
[1659262037514,0.84620215,1698.1,1698.0,0.3]
[1659262037909,6.3173,1698.4,1698.0,0.3]
[1659262038204,0.05,1698.7,1698.1,0.4417]
[1659262038356,0.3,1698.7,1698.1,0.4417]
[1659262038529,3.10872849,1698.7,1698.1,0.4417]
[1659262038731,2.89804672,1698.6,1698.1,0.17598436]
[1659262038937,2.63475757,1698.5,1698.0,0.3]
[1659262039246,3.10872849,1698.4,1698.0,0.3]
[1659262039447,3.15524887,1698.4,1698.0,0.3]
[1659262039754,3.75524887,1698.4,1698.0,0.3]
[1659262039974,0.10268878,1698.1,1698.0,0.3]
[1659262041660,3.0007355,1698.1,1698.0,0.3]
[1659262041991,0.10268878,1698.1,1698.0,0.3]
[1659262042778,0.10268878,1698.1,1698.0,0.43403258]
[1659262043217,0.10268878,1698.1,1698.0,0.64870152]
[1659262044188,0.10268878,1698.1,1698.0,0.3]
[1659262044949,0.10268878,1698.1,1698.0,0.5]
[1659262045258,0.10268878,1698.1,1698.0,0.3]
[1659262046398,0.10268878,1698.1,1698.0,0.7417]
[1659262046599,0.10268878,1698.1,1698.0,7.25423602]
[1659262046760,0.10268878,1698.1,1698.0,3.75423602]
[1659262047415,0.10268878,1698.1,1698.0,0.31253602]
[1659262047702,0.10268878,1698.1,1698.0,3.81253602]
[1659262047904,0.10268878,1698.1,1698.0,6.81253602]
[1659262048085,0.10268878,1698.1,1698.0,3.31253602]
[1659262048683,0.10268878,1698.1,1698.0,3.4465686]
[1659262048851,0.10268878,1698.1,1698.0,6.9465686]
[1659262049051,0.10268878,1698.1,1698.0,3.4465686]
[1659262049527,0.10268878,1698.1,1698.0,3.3465686]
[1659262049925,0.10268878,1698.1,1698.0,9.74461532]
[1659262050130,0.10268878,1698.1,1698.0,10.18631532]
[1659262050705,0.05338878,1698.1,1698.0,10.18631532]
[1659262051299,0.10264638,1698.1,1698.0,10.18631532]
[1659262051713,0.05,1698.5,1698.1,0.051]
[1659262051922,0.05,1698.7,1698.4,8.0]
[1659262052148,0.05,1699.0,1698.6,10.31003306]
[1659262052350,0.05,1699.2,1698.8,3.5]
[1659262052553,12.4663,1699.4,1698.9,0.33403258]
[1659262052554,0.05,1699.4,1698.9,0.33403258]
[1659262052858,0.05,1699.6,1699.0,3.5]
[1659262053007,6.291,1699.9,1699.1,9.59804672]
[1659262053008,0.05,1699.7,1699.1,9.59804672]
[1659262053265,6.1196,1699.9,1699.4,3.5]
[1659262053266,0.05,1699.9,1699.4,3.5]
[1659262053460,9.5789,1700.0,1699.4,3.5]
[1659262053461,9.1377,1700.0,1699.4,3.5]
[1659262053895,9.39490215,1700.0,1699.3,6.9414]
[1659262054059,9.39490215,1700.0,1699.4,3.0]
[1659262054060,0.05047961,1699.6,1699.4,3.0]
[1659262054904,0.05047961,1699.6,1699.3,0.13403258]
[1659262055074,0.05047961,1699.6,1699.1,0.4414]
[1659262055278,0.05047961,1699.6,1699.0,12.17764672]
[1659262055677,0.30768176,1699.6,1699.0,12.17764672]
[1659262055897,0.30768176,1699.6,1699.0,8.67764672]
[1659262056092,0.30768176,1699.6,1699.0,8.8116793]
[1659262056292,0.30768176,1699.6,1699.0,5.91363258]
[1659262057384,0.30768176,1699.6,1699.0,2.91363258]
[1659262057580,0.30768176,1699.6,1699.0,0.13403258]
[1659262057581,1.34898176,1699.6,1699.0,0.13403258]
[1659262058804,2.89804672,1699.5,1699.0,0.13403258]
[1659262061228,11.42954672,1699.5,1699.0,0.13403258]
[1659262061587,8.5315,1699.5,1699.0,0.13403258]
[1659262061789,0.60768176,1699.6,1699.0,3.0320793]
[1659262062642,0.60768176,1699.6,1699.1,0.06397321]
[1659262062995,0.30768176,1699.6,1699.2,0.13403258]
[1659262063543,0.30768176,1699.6,1699.2,3.0320793]
[1659262063837,0.05047961,1699.6,1699.2,3.0320793]
[1659262064166,0.05047961,1699.6,1699.3,3.06396568]
[1659262065320,0.05047961,1699.6,1699.2,0.13403258]
[1659262066668,0.05047961,1699.6,1699.0,4.8863]
[1659262066822,0.05047961,1699.6,1698.9,3.3742]
[1659262066823,3.24852633,1699.6,1698.9,3.3742]
[1659262067022,2.89804672,1699.5,1698.9,2.9327]
[1659262067223,3.15524887,1699.5,1698.9,2.9327]
[1659262067729,9.83934672,1699.4,1698.7,0.05]
[1659262067924,9.83934672,1699.4,1698.6,0.05]
[1659262067925,14.93374887,1699.3,1698.6,0.05]
[1659262068121,6.83944672,1699.2,1698.5,0.05]
[1659262068419,6.39804672,1699.1,1698.4,0.05]
[1659262068622,6.39804672,1699.1,1698.3,3.2906]
[1659262068623,0.25720215,1699.0,1698.3,3.2906]
[1659262068859,0.20720215,1699.0,1698.3,6.13864672]
[1659262069423,0.20720215,1699.0,1698.3,5.69704672]
[1659262070725,0.20720215,1699.0,1698.3,5.81493484]
[1659262071026,0.05,1699.1,1698.7,0.2]
[1659262071228,0.62077955,1699.2,1699.0,0.2]
[1659262071425,0.04937979,1699.4,1699.0,3.7]
[1659262071663,0.04937979,1699.4,1699.0,4.1414]
[1659262071848,0.04937979,1699.4,1699.0,0.6414]
[1659262072048,0.04937979,1699.4,1699.0,0.4414]
[1659262072365,0.04937979,1699.4,1698.9,3.4415]
[1659262072579,0.04937979,1699.4,1698.9,6.34252911]
[1659262073372,0.04937979,1699.4,1698.9,6.33954672]
[1659262074127,0.04937979,1699.4,1698.9,2.89804672]
[1659262074361,3.9035,1699.6,1698.9,2.89804672]
[1659262074564,3.8535,1699.6,1698.9,2.89804672]
[1659262074969,3.8535,1699.6,1699.0,0.1375122]
[1659262075534,3.4122,1699.6,1699.0,0.3375122]
[1659262076334,3.61940215,1699.6,1699.0,0.1375122]
[1659262077888,3.61940215,1699.6,1699.0,0.3375122]
[1659262080102,3.01940215,1699.6,1699.0,0.3375122]
[1659262080311,3.01940215,1699.6,1699.0,3.3375122]
[1659262080489,2.8122,1699.6,1699.0,6.23555892]
[1659262080795,8.55147979,1699.7,1699.1,3.5]
[1659262080999,8.50147979,1699.7,1699.2,3.0]
[1659262081314,8.50147979,1699.7,1699.2,3.1375122]
[1659262082807,8.50147979,1699.7,1699.2,6.03555892]
[1659262083369,0.04937979,1699.7,1699.3,2.89804672]
[1659262084160,0.05,1699.9,1699.3,2.89804672]
[1659262084365,0.20720215,1699.9,1699.3,2.89804672]
[1659262091930,0.20720215,1699.9,1699.3,2.89594795]
[1659262092578,2.89804672,1699.8,1699.2,3.5789122]
[1659262092733,3.5,1699.7,1699.0,0.05]
[1659262092934,6.39804672,1699.7,1698.9,2.9294]
[1659262093260,6.39804672,1699.7,1698.9,2.8794]
[1659262093645,2.89804672,1699.7,1698.9,2.8794]
[1659262094046,0.4413,1699.6,1698.9,2.8794]
[1659262094247,0.7413,1699.6,1698.9,2.8794]
[1659262094678,1.0413,1699.6,1698.9,2.8794]
[1659262095274,1.0413,1699.6,1698.9,3.0169122]
[1659262095450,1.0413,1699.6,1698.9,3.01909806]
[1659262096063,0.6,1699.6,1699.0,3.33944672]
[1659262096249,0.05,1699.7,1699.1,3.08492628]
[1659262096482,0.20720215,1699.7,1699.1,3.08492628]
[1659262099313,6.70590554,1699.8,1699.1,3.08492628]
[1659262099314,0.04850554,1699.8,1699.5,7.0]
[1659262099528,0.04850554,1699.8,1699.6,3.13997985]
[1659262099736,0.04850554,1699.8,1699.7,3.33934672]
[1659262099940,0.04850554,1699.8,1699.7,2.89804672]
[1659262100624,0.05,1700.2,1699.7,2.89804672]
[1659262100625,0.05,1700.2,1699.7,13.39804672]
[1659262100834,9.51738068,1700.4,1700.1,0.4]
[1659262100835,0.05,1700.4,1700.1,0.4]
[1659262101006,11.5,1700.5,1700.1,3.4]
[1659262101007,0.00329048,1700.5,1700.1,3.4]
[1659262101211,0.00329048,1700.5,1700.1,6.29804672]
[1659262101637,0.00329048,1700.5,1700.2,0.18216073]
[1659262101798,0.00329048,1700.5,1700.3,0.2]
[1659262101998,0.46958068,1700.8,1700.3,3.09804672]
[1659262102239,0.46958068,1700.9,1700.5,0.2]
[1659262102459,0.94505834,1701.2,1700.5,0.2]
[1659262102460,0.51958068,1701.2,1700.5,0.2]
[1659262102752,0.00329079,1700.9,1700.5,0.2]
[1659262102940,0.21049294,1700.9,1700.4,6.5]
[1659262103142,0.21049294,1700.9,1700.4,5.89804672]
[1659262103528,0.20720215,1700.9,1700.4,5.89804672]
[1659262103930,0.04601927,1700.5,1700.4,6.0802022]
[1659262104170,0.04601927,1700.5,1700.4,9.7802022]
[1659262104673,0.04601927,1700.5,1700.4,9.5802022]
[1659262104851,0.04601927,1700.5,1700.4,6.0802022]
[1659262105029,0.04601927,1700.5,1700.4,9.5802022]
[1659262106284,0.04601927,1700.5,1700.4,6.0802022]
[1659262106460,0.04601927,1700.5,1700.4,9.5802022]
[1659262106831,0.04601927,1700.5,1700.4,9.9802022]
[1659262107061,0.04601927,1700.5,1700.4,9.7802022]
[1659262107263,0.04601927,1700.5,1700.4,9.5802022]
[1659262107681,0.04601927,1700.5,1700.4,6.0802022]
[1659262107846,0.04601927,1700.5,1700.4,9.5802022]
[1659262108230,0.04601927,1700.5,1700.4,9.7802022]
[1659262109257,0.04601927,1700.5,1700.4,6.2802022]
[1659262109480,0.04601927,1700.5,1700.4,9.7802022]
[1659262110489,0.05,1700.9,1700.4,31.2063022]
[1659262110693,3.296,1701.6,1700.4,31.2063022]
[1659262110694,0.05,1701.1,1700.8,7.6]
[1659262111008,0.05,1701.4,1700.9,3.05405696]
[1659262111165,2.9052,1701.6,1701.0,3.0]
[1659262111370,2.8552,1701.6,1701.0,3.3]
[1659262111674,2.8552,1701.6,1701.0,3.6]
[1659262112503,0.04151267,1701.4,1701.0,3.6]
[1659262112704,0.04151267,1701.4,1701.0,13.49804672]
[1659262113213,0.04151267,1701.4,1701.0,2.89804672]
[1659262116272,0.20720215,1701.3,1700.8,3.0838]
[1659262116489,0.20720215,1701.3,1700.9,3.0]
[1659262116686,0.20720215,1701.3,1700.8,2.7838]
[1659262119790,0.04131138,1701.4,1700.9,9.89804672]
[1659262120131,0.04131138,1701.4,1701.0,5.89804672]
[1659262120342,0.04131138,1701.4,1701.2,0.2]
[1659262120498,0.04084312,1701.3,1701.2,0.2]
[1659262121290,0.04084312,1701.3,1701.2,0.4]